bitfinex-derivatives/quotes_ETHF0:USTF0_20250410
["timestamp","ask_amount","ask_price","bid_price","bid_amount"]
[1744289193140,1.25505,1594.5,1594.3,4.46293]
[1744289193451,3.2078,1594.9,1594.6,1.25494]
[1744289193749,0.00938085,1594.9,1594.7,1.25485]
[1744289193945,1.2548,1594.8,1594.7,17.59555541]
[1744289194243,1.26414085,1594.9,1594.8,12.50625541]
[1744289194444,1.2548,1594.8,1594.7,6.34418]
[1744289194642,1.26416085,1594.9,1594.8,12.50625541]
[1744289194843,4.88975941,1595.1,1594.8,16.96885541]
[1744289195142,7.33463912,1595.3,1595.0,17.66405212]
[1744289195348,7.33463912,1595.3,1595.2,4.46228]
[1744289195541,9.72477959,1595.5,1595.4,1.25433]
[1744289195741,9.72477959,1595.5,1595.3,16.02764212]
[1744289196046,10.97907959,1595.5,1595.3,5.9623]
[1744289196247,10.97907959,1595.5,1595.4,11.31974212]
[1744289196551,9.72477959,1595.5,1595.4,11.31974212]
[1744289196738,0.00938085,1595.6,1595.4,19.52754212]
[1744289196940,0.00938085,1595.6,1595.5,12.57399212]
[1744289197548,0.00938085,1595.6,1595.5,17.57399212]
[1744289198154,8.2785,1596.3,1596.0,1.25381]
[1744289198451,1.25365,1596.3,1596.1,1.25376]
[1744289198646,1.25365,1596.3,1596.2,11.31974212]
[1744289198839,3.13367,1596.5,1595.9,3.2078]
[1744289198840,3.2078,1596.4,1596.0,11.31974212]
[1744289199048,1.25378,1596.1,1596.0,11.31974212]
[1744289199443,1.25385,1596.0,1595.9,3.21718085]
[1744289199745,4.47094085,1596.2,1596.0,11.31974212]
[1744289199950,4.47094085,1596.2,1596.0,12.57358212]
[1744289200146,0.00938085,1596.2,1596.1,12.57352212]
[1744289200450,0.00938085,1596.2,1596.1,1.25378]
[1744289200643,1.26308085,1596.2,1596.1,11.31974212]
[1744289201040,0.00938085,1596.2,1596.1,12.57352212]
[1744289201445,9.60131691,1596.6,1596.5,1.25346]
[1744289201645,40.8,1596.7,1596.5,1.25344]
[1744289201843,40.8,1596.7,1596.3,3.2078]
[1744289201844,42.0533,1596.7,1596.6,1.71842521]
[1744289202152,1.25338,1596.6,1596.5,1.71842521]
[1744289202359,3.13366,1596.5,1595.9,0.00938085]
[1744289202655,11.4368,1596.6,1595.9,0.00938085]
[1744289202656,15.05994085,1596.4,1595.9,1.72780606]
[1744289202859,1.25385,1596.0,1595.9,0.00938085]
[1744289203049,1.25384,1596.1,1595.9,2.98170606]
[1744289203250,1.25385,1596.0,1595.9,1.72780606]
[1744289203551,1.25383,1596.1,1595.9,2.98166606]
[1744289203958,13.17045,1596.2,1596.0,1.71842521]
[1744289204161,4.46155,1596.2,1596.0,1.71842521]
[1744289204355,4.46155,1596.2,1596.1,1.71842521]
[1744289204560,4.46155,1596.2,1596.1,1.25378]
[1744289204768,3.2078,1596.2,1596.1,2.97220521]
[1744289204967,4.4615,1596.2,1596.1,1.71842521]
[1744289205163,3.2078,1596.2,1596.1,1.71842521]
[1744289205367,4.4615,1596.2,1596.1,1.71842521]
[1744289206775,1.25378,1596.1,1596.0,8.4571]
[1744289206976,9.81918,1596.1,1596.0,8.4571]
[1744289207471,1.25385,1596.0,1595.9,0.00938085]
[1744289207773,4.46165,1596.0,1595.9,0.00938085]
[1744289207971,9.46165,1596.0,1595.9,0.00938085]
[1744289209379,4.46165,1596.0,1595.9,0.00938085]
[1744289210377,4.46165,1596.0,1595.9,1.72780606]
[1744289210768,4.46165,1596.0,1595.9,10.41220606]
[1744289211177,4.46165,1596.0,1595.9,11.66613606]
[1744289211377,4.46165,1596.0,1595.9,10.41220606]
[1744289212678,4.46165,1596.0,1595.9,11.66613606]
[1744289213279,1.25382,1596.1,1596.0,1.25379]
[1744289213570,1.25382,1596.1,1596.0,11.72091521]
[1744289213781,4.46162,1596.1,1596.0,10.46712521]
[1744289214076,1.25385,1596.0,1595.9,0.00938085]
[1744289214265,9.29385,1596.0,1595.9,1.72780606]
[1744289214576,9.29385,1596.0,1595.9,0.00938085]
[1744289214777,9.29385,1596.0,1595.9,1.72780606]
[1744289214979,9.29385,1596.0,1595.9,0.00938085]
[1744289215477,1.25385,1596.0,1595.9,1.72780606]
[1744289215870,1.25385,1596.0,1595.9,0.00938085]
[1744289216075,9.43025,1596.0,1595.9,0.00938085]
[1744289216785,9.43025,1596.0,1595.9,1.72780606]
[1744289217678,84.0598,1596.0,1594.6,11.3978]
[1744289217874,1.2544,1595.3,1595.2,8.3181]
[1744289218182,42.0544,1595.3,1595.2,8.3181]
[1744289218476,1.25464,1595.0,1594.9,9.9415]
[1744289218681,1.25464,1595.0,1594.9,18.2463284]
[1744289218884,1.25464,1595.0,1594.9,24.5010484]
[1744289219378,1.25464,1595.0,1594.9,23.2463284]
[1744289220179,1.25464,1595.0,1594.9,18.2463284]
[1744289220783,1.25464,1595.0,1594.9,23.2463284]
[1744289221077,1.25464,1595.0,1594.9,8.3181]
[1744289221277,1.25472,1594.9,1594.8,0.00938085]
[1744289221479,4.46252,1594.9,1594.8,0.00938085]
[1744289221678,4.46252,1594.9,1594.8,8.5e-07]
[1744289221875,9.46252,1594.9,1594.8,8.5e-07]
[1744289222376,50.26252,1594.9,1594.8,8.5e-07]
[1744289222579,42.05472,1594.9,1594.8,8.5e-07]
[1744289222882,42.05472,1594.9,1594.8,8.35830085]
[1744289223476,1.25472,1594.9,1594.8,8.35830085]
[1744289223685,1.25472,1594.9,1594.8,8.5e-07]
[1744289223883,63.92952,1594.9,1594.8,8.5e-07]
[1744289224085,68.59162,1594.9,1594.8,8.5e-07]
[1744289224380,68.59162,1594.9,1594.2,8.3583]
[1744289224381,1.25519,1594.3,1594.2,8.3583]
[1744289224684,4.46297,1594.4,1594.2,9.61352]
[1744289224883,1.25517,1594.4,1594.2,8.3583]
[1744289225084,1.25519,1594.3,1594.2,8.3583]
[1744289225270,11.6608,1594.7,1594.3,1.25517]
[1744289225473,1.2418984,1594.4,1594.3,1.25517]
[1744289225680,1.25498,1594.6,1594.3,0.00938085]
[1744289225880,3.2078,1594.4,1594.3,0.00938085]
[1744289226075,4.46291,1594.4,1594.3,8.5e-07]
[1744289226276,9.46291,1594.4,1594.3,8.5e-07]
[1744289226688,1.25582,1593.5,1593.4,4.46365]
[1744289226887,6.34688,1593.8,1593.4,4.46365]
[1744289227181,6.34688,1593.8,1593.2,9.788]
[1744289227182,3.13937,1593.6,1593.2,9.788]
[1744289227483,1.25598,1593.3,1593.2,4.965]
[1744289227878,1.25614,1593.1,1593.0,24.16787792]
[1744289228079,4.46394,1593.1,1593.0,19.34487792]
[1744289228275,17.65794,1593.1,1593.0,19.34487792]
[1744289228476,17.65794,1593.1,1593.0,15.57827749]
[1744289228684,22.48564,1593.1,1593.0,14.26655749]
[1744289228983,44.0078,1593.1,1593.0,14.26655749]
[1744289229186,44.0078,1593.1,1593.0,15.52277749]
[1744289229376,0.00941058,1593.4,1593.0,14.26655749]
[1744289229578,1.25601,1593.3,1593.1,1.25613]
[1744289229778,8.19551058,1593.4,1593.0,14.26655749]
[1744289229982,40.8,1593.3,1593.0,15.52272749]
[1744289230177,44.0078,1593.3,1593.0,15.52274749]
[1744289230377,1.25606,1593.2,1593.0,14.26655749]
[1744289230575,44.0078,1593.3,1593.0,14.26655749]
[1744289230884,9.44218,1593.2,1593.0,1.25622]
[1744289231090,1.25614,1593.1,1592.9,3.23236319]
[1744289231382,1.25622,1593.0,1592.9,3.23236319]
[1744289231581,9.44219,1593.2,1592.9,3.23236319]
[1744289231783,1.25614,1593.1,1592.9,3.23236319]
[1744289231983,3.2078,1593.0,1592.2,3.2078]
[1744289232178,3.14193,1592.3,1591.5,3.2078]
[1744289232378,3.14193,1592.3,1591.3,3.2078]
[1744289232379,3.2078,1592.0,1591.3,3.2078]
[1744289232581,4.46469,1592.2,1591.5,6.35127]
[1744289232886,1.25696,1592.1,1591.5,6.3512]
[1744289233188,3.2078,1591.9,1591.3,6.35156]
[1744289233487,0.00941058,1592.0,1591.4,3.1437]
[1744289233678,0.00941058,1592.0,1591.9,1.25708]
[1744289234182,3.2078,1592.4,1591.8,3.14277]
[1744289234384,3.2078,1592.1,1591.8,3.2078]
[1744289234586,3.2078,1592.2,1591.7,3.14311]
[1744289234786,3.2078,1592.0,1591.9,1.25701]
[1744289234990,3.2078,1592.4,1592.2,1.25682]
[1744289235185,3.2078,1592.4,1591.9,3.14269]
[1744289235494,1.25666,1592.5,1592.4,1.25661]
[1744289235495,0.00941058,1592.5,1592.4,1.25661]
[1744289235787,5.8e-07,1592.5,1592.4,1.25661]
[1744289235989,5.8e-07,1592.5,1592.4,6.25661]
[1744289236186,5.8e-07,1592.5,1592.1,3.21721058]
[1744289236493,5.8e-07,1592.5,1592.3,1.25674]
[1744289236792,5.8e-07,1592.5,1592.4,1.25669]
[1744289237087,3.20780058,1592.5,1592.1,0.00941058]
[1744289237489,1.25685,1592.2,1592.1,0.00941058]
[1744289238487,9.39275,1592.2,1592.1,0.00941058]
[1744289238694,8.1359,1592.2,1592.1,0.00941058]
[1744289238992,5.8e-07,1592.5,1592.4,1.25669]
[1744289239479,5.8e-07,1592.5,1592.4,6.25669]
[1744289239681,5.8e-07,1592.5,1592.4,1.25669]
[1744289240692,5.8e-07,1592.5,1592.3,9.63412]
[1744289240992,5.8e-07,1592.5,1592.4,1.25669]
[1744289241195,1.25685,1592.2,1592.1,0.00941058]
[1744289241389,9.46465,1592.2,1592.1,0.00941058]
[1744289241590,9.46465,1592.2,1592.1,5.8e-07]
[1744289242300,1.2574,1591.5,1591.3,6.1555]
[1744289242793,1.25744,1591.5,1591.4,1.25748]
[1744289242993,1.25735,1591.6,1591.3,4.898]
[1744289243195,1.25748,1591.4,1591.2,1.25758]
[1744289243397,1.25748,1591.4,1591.3,0.00941058]
[1744289244094,0.00941058,1591.6,1591.5,1.2574]
[1744289244690,1.26673058,1591.6,1591.5,1.2574]
[1744289244897,0.00941058,1591.6,1591.5,1.2574]
[1744289245098,1.26676058,1591.6,1591.4,1.25742]
[1744289245292,4.47456058,1591.6,1591.5,8.3805]
[1744289245492,3.21721058,1591.6,1591.5,9.6379]
[1744289245697,4.47453058,1591.6,1591.5,8.3805]
[1744289246199,3.21721058,1591.6,1591.5,9.6379]
[1744289246496,1.26673058,1591.6,1591.5,8.3805]
[1744289246696,0.00941058,1591.6,1591.5,9.6379]
[1744289246885,1.25748,1591.4,1591.3,0.00941058]
[1744289247084,4.46528,1591.4,1591.3,0.00941058]
[1744289247589,9.46528,1591.4,1591.3,0.00941058]
[1744289248098,3.2078,1591.4,1591.3,1.26697058]
[1744289248393,5.8e-07,1591.6,1591.5,1.2574]
[1744289248592,5.8e-07,1591.6,1591.5,4.4652]
[1744289248797,44.0078,1592.3,1591.8,3.14273]
[1744289248998,3.2078,1592.3,1592.2,1.25685]
[1744289249294,3.2078,1592.8,1592.6,1.2565]
[1744289249486,40.8,1592.7,1592.2,3.14212]
[1744289249796,42.05646,1592.7,1592.5,1.25655]
[1744289249989,40.8,1592.7,1592.6,9.34433]
[1744289250299,42.05645,1592.7,1592.6,8.0878]
[1744289250492,40.8,1592.7,1592.6,9.34433]
[1744289250898,45.26425,1592.7,1592.6,8.0878]
[1744289251201,40.8,1592.7,1592.6,9.34433]
[1744289251594,0.00941058,1592.8,1592.7,1.25645]
[1744289251794,3.2078,1593.2,1593.1,1.25614]
[1744289252001,4.46387,1593.2,1592.9,1.25623]
[1744289252199,42.05614,1593.1,1593.0,8.0878]
[1744289252699,3.2078,1593.2,1593.0,9.34399]
[1744289252905,3.21721058,1593.2,1593.0,8.0878]
[1744289253097,42.05614,1593.1,1593.0,8.0878]
[1744289254205,1.25622,1593.0,1592.9,0.00941058]
[1744289254396,4.46402,1593.0,1592.9,0.00941058]
[1744289254596,12.70412,1593.0,1592.9,0.00941058]
[1744289254792,3.2078,1593.0,1592.9,1.26570058]
[1744289254997,4.46402,1593.0,1592.9,0.00941058]
[1744289255198,3.2078,1593.0,1592.9,1.26570058]
[1744289255696,4.46402,1593.0,1592.9,0.00941058]
[1744289256293,17.71212,1593.0,1592.9,0.00941058]
[1744289256495,17.71212,1593.0,1592.9,1.00941058]
[1744289256701,17.71212,1593.0,1592.9,5.8e-07]
[1744289257001,1.25689,1592.2,1592.1,1.25691]
[1744289257298,3.14124,1592.7,1592.1,7.9526]
[1744289257299,3.2078,1592.4,1592.1,7.9526]
[1744289257504,1.25679,1592.3,1592.2,1.25681]
[1744289257909,1.25685,1592.2,1592.1,9.21892058]
[1744289258097,3.21721058,1592.4,1592.2,1.25685]
[1744289258300,3.21721058,1592.4,1592.3,7.9526]
[1744289258301,4.47394058,1592.4,1592.3,7.9526]
[1744289258705,0.00941058,1592.4,1592.3,9.20937]
[1744289258904,40.80941058,1592.4,1592.3,9.20937]
[1744289259401,45.27390058,1592.4,1592.3,7.9526]
[1744289259707,53.99070058,1592.4,1592.3,7.9526]
[1744289260009,1.25685,1592.2,1592.1,0.00941058]
[1744289260298,52.18921058,1592.4,1592.1,0.00941058]
[1744289260504,44.01721058,1592.4,1592.3,1.25677]
[1744289260701,40.80941058,1592.4,1592.3,1.25677]
[1744289260896,40.80941058,1592.4,1592.3,6.25677]
[1744289260897,0.00941058,1592.4,1592.3,6.25677]
[1744289261301,0.00941058,1592.4,1592.2,1.2568]
[1744289261494,1.26613058,1592.4,1592.3,8.2004]
[1744289261698,1.26615058,1592.4,1592.1,4.76201058]
[1744289261899,1.25677,1592.3,1592.2,8.2004]
[1744289262100,1.25685,1592.2,1592.1,1.26634058]
[1744289262500,1.25685,1592.2,1592.1,0.00941058]
[1744289262708,4.46465,1592.2,1592.1,1.26634058]
[1744289262914,1.25685,1592.2,1592.1,0.00941058]
[1744289263405,1.26617058,1592.4,1592.1,8.20981058]
[1744289263601,1.25681,1592.3,1592.2,1.25682]
[1744289264104,1.26615058,1592.4,1592.1,8.20981058]
[1744289264312,0.00941058,1592.4,1592.3,1.25677]
[1744289264808,1.25677,1592.3,1592.2,5.036]
[1744289265400,1.25685,1592.2,1592.1,0.00941058]
[1744289265712,1.25677,1592.3,1592.1,0.4752278]
[1744289266003,0.00941058,1592.4,1592.2,0.46579485]
[1744289266306,0.00941058,1592.4,1592.2,1.25681]
[1744289266510,0.00941058,1592.4,1592.3,1.25677]
[1744289266901,0.00941058,1592.4,1592.3,6.25677]
[1744289267097,0.02363161,2277.1,1592.3,6.25677]
[1744289267098,7.18749757,1593.0,1592.5,3.1414]
[1744289267302,7.18749757,1593.0,1592.6,8.63981761]
[1744289267500,7.18749757,1593.0,1592.9,1.25629]
[1744289268307,8.44371757,1593.0,1592.9,1.25629]
[1744289268509,7.18749757,1593.0,1592.8,1.25631]
[1744289268813,7.18749757,1593.0,1592.9,1.25629]
[1744289269204,20.36334815,1593.1,1592.7,3.14112]
[1744289269411,19.10720815,1593.1,1593.0,1.25622]
[1744289269606,10.40470815,1593.1,1593.0,1.25622]
[1744289271714,7.19690815,1593.1,1593.0,1.25622]
[1744289272116,0.00941058,1593.1,1593.0,6.25622]
[1744289272312,10.39529757,1593.5,1593.2,1.25606]
[1744289272616,10.39529757,1593.5,1593.4,1.2559]
[1744289273003,7.18749757,1593.5,1593.4,6.2559]
[1744289273515,7.18749757,1593.5,1593.4,1.2559]
[1744289275812,7.18749757,1593.5,1593.4,6.2559]
[1744289276019,0.00941058,1593.6,1593.5,1.25582]
[1744289277112,0.00941058,1593.6,1593.5,6.25582]
[1744289277313,5.8e-07,1593.6,1593.5,6.25582]
[1744289277914,5.8e-07,1593.6,1593.4,3.67242697]
[1744289277915,5.8e-07,1593.6,1593.4,1.25586]
[1744289278122,3.20780058,1593.6,1593.3,4.69551058]
[1744289278311,1.25588,1593.5,1593.3,4.69551058]
[1744289278518,4.4637,1593.4,1593.3,0.00941058]
[1744289279022,9.4637,1593.4,1593.3,0.00941058]
[1744289279222,17.6305,1593.4,1593.3,0.00941058]
[1744289279421,12.6305,1593.4,1593.3,0.00941058]
[1744289280219,1.2563,1592.9,1592.5,3.14147]
[1744289280425,1.2563,1592.9,1592.8,7.9457]
[1744289280621,1.2563,1592.9,1592.4,3.14171]
[1744289280622,3.2078,1593.0,1592.5,3.14153]
[1744289280822,12.59007,1593.0,1592.8,1.25635]
[1744289281023,12.59007,1593.0,1592.9,7.9457]
[1744289281324,53.39007,1593.0,1592.9,7.9457]
[1744289281819,40.8,1593.0,1592.9,9.20199]
[1744289282126,3.20780058,1593.6,1593.4,1.25586]
[1744289282322,8.126,1593.5,1593.4,1.25586]
[1744289282526,48.926,1593.5,1593.4,1.25586]
[1744289283022,3.20780058,1593.6,1593.5,1.25582]
[1744289283328,5.8e-07,1593.6,1593.5,1.25582]
[1744289283926,5.8e-07,1593.6,1593.5,6.25582]
[1744289284132,1.25580058,1593.6,1593.4,9.63986]
[1744289284339,1.25580058,1593.6,1593.5,1.25582]
[1744289284941,5.8e-07,1593.6,1593.5,1.25582]
[1744289285845,1.25582,1593.5,1593.4,8.384]
[1744289286045,12.50372,1593.5,1593.4,8.384]
[1744289286340,1.25598,1593.3,1593.1,6.25768]
[1744289286542,1.25601,1593.3,1593.1,6.25768]
[1744289286839,11.2479,1593.5,1593.1,5.0016]
[1744289287140,4.70500058,1593.6,1593.5,1.25582]
[1744289287141,5.8e-07,1593.6,1593.5,1.25582]
[1744289287534,4.46354058,1593.6,1593.5,1.25582]
[1744289287741,1.25582,1593.5,1593.4,8.0453]
[1744289287936,8.0401,1593.5,1593.4,9.3012]
[1744289288138,3.20780058,1593.6,1593.5,1.25582]
[1744289288541,5.8e-07,1593.6,1593.5,4.46362]
[1744289289243,5.8e-07,1593.6,1593.5,1.25582]
[1744289290147,5.8e-07,1593.6,1593.5,9.92825019]
[1744289290841,5.8e-07,1593.6,1593.5,9.92841388]
[1744289291345,5.8e-07,1593.6,1593.5,9.92843755]
[1744289291748,5.8e-07,1593.6,1593.5,18.67003755]
[1744289292943,5.8e-07,1593.6,1593.5,18.67025978]
[1744289293145,1.25574058,1593.6,1593.2,8.19813]
[1744289293344,1.25582,1593.5,1593.4,1.25584]
[1744289293649,8.2691,1593.5,1593.4,1.25584]
[1744289293850,5.8e-07,1593.6,1593.5,1.25582]
[1744289294148,1.25586,1593.5,1593.4,1.25589]
[1744289294350,8.26910058,1593.6,1593.5,1.25582]
[1744289294541,5.8e-07,1593.6,1593.5,4.9295464]
[1744289294746,5.8e-07,1593.6,1593.5,9.9295464]
[1744289295251,5.8e-07,1593.6,1593.5,4.9295464]
[1744289295440,5.8e-07,1593.6,1593.5,1.7217464]
[1744289296149,5.8e-07,1593.6,1593.5,9.9295464]
[1744289296344,5.8e-07,1593.6,1593.5,18.0465464]
[1744289296744,5.8e-07,1593.6,1593.5,13.0465464]
[1744289296945,5.8e-07,1593.6,1593.5,9.8387464]
[1744289297148,3.20780058,1593.6,1593.4,1.25584]
[1744289297450,3.20780058,1593.6,1593.5,1.72289853]
[1744289297651,5.8e-07,1593.6,1593.5,1.72289803]
[1744289297948,1.25608,1593.2,1592.8,3.21721058]
[1744289298157,4.46388,1593.2,1592.9,9.2523647]
[1744289298350,8.5951,1593.1,1593.0,1.72340932]
[1744289298549,3.20780058,1593.6,1593.5,1.25582]
[1744289298751,18.05864058,1593.6,1593.5,1.25582]
[1744289299055,11.80290058,1593.6,1593.5,1.25582]
[1744289299251,13.05866058,1593.6,1593.4,8.7852]
[1744289299450,8.59510058,1593.6,1593.5,1.25582]
[1744289299752,5.8e-07,1593.6,1593.5,1.72313643]
[1744289300354,9.85084058,1593.6,1593.5,0.46731643]
[1744289300854,1.25582,1593.5,1593.4,1.2559]
[1744289301049,1.25582,1593.5,1593.4,0.46746274]
[1744289301356,1.2559,1593.4,1593.3,9.32264]
[1744289301657,1.2559,1593.4,1593.3,0.46757401]
[1744289302056,1.25606,1593.2,1593.1,1.25609]
[1744289302260,9.5251,1593.3,1593.2,1.25606]
[1744289302555,13.2691,1593.3,1593.1,1.25608]
[1744289302756,1.25616,1593.1,1592.9,8.0667]
[1744289302958,8.2691,1593.0,1592.9,9.32297]
[1744289303153,3.2078,1593.2,1593.1,1.25614]
[1744289303349,11.4769,1593.2,1593.1,1.7236612]
[1744289303554,8.2691,1593.2,1593.1,1.25614]
[1744289304158,11.5705,1593.4,1593.3,1.25598]
[1744289304354,1.25598,1593.3,1593.1,1.25607]
[1744289304657,9.61873,1593.3,1593.1,1.25614]
[1744289304853,1.25606,1593.2,1593.0,9.98516]
[1744289305160,3.2078,1593.4,1593.1,3.14035]
[1744289305459,3.2078,1593.4,1593.3,1.25598]
[1744289305752,4.4637,1593.4,1593.2,8.729]
[1744289305951,8.3627,1593.3,1593.2,9.98506]
[1744289306153,8.3627,1593.3,1593.2,10.4524992]
[1744289306756,3.2078,1593.4,1593.3,1.25598]
[1744289307060,3.2078,1593.4,1593.3,6.70027721]
[1744289307453,8.575,1593.5,1593.4,1.2559]
[1744289307657,9.83082,1593.5,1593.4,8.6681]
[1744289307854,19.85428,1593.5,1592.8,4.79121058]
[1744289308048,3.2078,1593.0,1592.8,0.00941058]
[1744289308253,9.83129,1592.9,1592.8,0.00941058]
[1744289308557,50.63129,1592.9,1592.8,0.00941058]
[1744289308758,55.63129,1592.9,1592.8,0.00941058]
[1744289309851,49.375,1592.9,1592.8,1.26578058]
[1744289310257,50.63129,1592.9,1592.8,0.00941058]
[1744289310454,49.375,1592.9,1592.8,1.26578058]
[1744289310756,50.63129,1592.9,1592.8,0.00941058]
[1744289310959,55.63129,1592.9,1592.8,0.00941058]
[1744289311148,50.63129,1592.9,1592.8,0.00941058]
[1744289311762,55.63129,1592.9,1592.8,0.00941058]
[1744289312156,58.01499,1592.9,1592.8,0.00941058]
[1744289312956,6.34874,1592.8,1591.7,12.7422078]
[1744289313151,56.7587,1592.9,1591.7,12.7422078]
[1744289313152,4.46496,1591.9,1591.7,10.8563278]
[1744289313352,8.2184,1591.8,1591.7,10.8563278]
[1744289313551,8.2184,1591.8,1591.7,19.7912278]
[1744289313756,8.2184,1591.8,1591.7,19.7912678]
[1744289313961,8.2184,1591.8,1591.7,10.8563678]
[1744289314264,9.47556,1591.8,1591.7,9.5991278]
[1744289314653,9.47556,1591.8,1591.7,10.8563678]
[1744289314855,9.47556,1591.8,1591.7,9.5991278]
[1744289315056,14.47556,1591.8,1591.7,9.5991278]
[1744289315458,55.27556,1591.8,1591.7,9.5991278]
[1744289315757,1.25724,1591.7,1591.6,14.47638893]
[1744289315958,13.51754,1591.7,1591.6,14.47638893]
[1744289316162,18.51754,1591.7,1591.6,14.47638893]
[1744289316360,59.31754,1591.7,1591.6,14.47638893]
[1744289317062,59.31754,1591.7,1591.6,0.00941058]
[1744289317266,67.44054,1591.7,1591.6,0.00941058]
[1744289317656,62.44054,1591.7,1591.6,0.00941058]
[1744289317961,67.44054,1591.7,1591.6,0.00941058]
[1744289318159,3.14331,1591.6,1590.9,1.25784]
[1744289318356,3.2078,1591.0,1590.5,11.15328]
[1744289318560,3.2078,1591.0,1590.9,1.25787]
[1744289318758,3.2078,1591.2,1591.1,1.25772]
[1744289319058,3.2078,1591.5,1591.4,1.25748]
[1744289319561,40.8,1591.7,1591.6,1.25732]
[1744289319964,50.68924,1591.7,1591.6,1.25732]
[1744289320163,52.57512,1591.7,1591.3,4.95881058]
[1744289320363,1.25748,1591.4,1591.3,9.01851058]
[1744289320565,4.46526,1591.5,1591.3,9.01851058]
[1744289320863,3.2078,1591.5,1591.4,1.25748]
[1744289321265,1.25739,1591.6,1591.5,1.2574]
[1744289321567,53.89706,1591.7,1591.6,1.25732]
[1744289321767,1.25735,1591.6,1591.3,9.01851058]
[1744289322071,44.0078,1591.7,1591.4,8.929]
[1744289322270,44.0078,1591.7,1591.6,1.25732]
[1744289322666,40.8,1591.7,1591.6,1.25732]
[1744289322964,1.2574,1591.5,1591.4,8.929]
[1744289323165,1.25748,1591.4,1591.3,0.00941058]
[1744289323372,1.25744,1591.5,1591.4,1.25748]
[1744289323560,1.25748,1591.4,1591.3,1.26693058]
[1744289323766,1.25748,1591.4,1591.3,0.00941058]
[1744289323963,1.25748,1591.4,1591.3,8.93841058]
[1744289324163,4.46528,1591.4,1591.3,8.93841058]
[1744289324369,3.2078,1591.4,1591.3,10.19597058]
[1744289324570,4.46528,1591.4,1591.3,10.19597058]
[1744289324868,4.46528,1591.4,1591.3,8.93841058]
[1744289325166,1.25741,1591.5,1591.3,13.93841058]
[1744289325372,3.21721058,1591.8,1591.3,17.08218058]
[1744289325671,1.25724,1591.7,1591.6,1.25732]
[1744289325863,42.05724,1591.7,1591.6,1.25732]
[1744289326059,42.05724,1591.7,1591.6,10.34472]
[1744289326264,1.25724,1591.7,1591.6,10.34472]
[1744289326772,42.05724,1591.7,1591.6,10.34472]
[1744289326968,42.05724,1591.7,1591.6,9.0874]
[1744289327170,42.05724,1591.7,1591.3,0.00941058]
[1744289327171,3.14331,1591.6,1591.3,0.00941058]
[1744289327376,1.25748,1591.4,1591.3,1.26695058]
[1744289328169,1.25748,1591.4,1591.3,0.00941058]
[1744289328371,10.08508,1591.4,1591.3,0.00941058]
[1744289330672,50.88508,1591.4,1591.3,0.00941058]
[1744289331076,55.88508,1591.4,1591.3,5.8e-07]
[1744289331872,56.38500316,1591.4,1591.3,5.8e-07]
[1744289332573,55.88508,1591.4,1591.3,5.8e-07]
[1744289334174,50.88508,1591.4,1591.3,5.8e-07]
[1744289334475,1.25772,1591.1,1591.0,8.3918]
[1744289334673,4.46552,1591.1,1591.0,8.3918]
[1744289335081,4.46552,1591.1,1591.0,9.6496]
[1744289335275,1.25772,1591.1,1591.0,9.6496]
[1744289335579,3.2078,1591.3,1591.0,8.3918]
[1744289335781,1.2578,1591.0,1590.9,0.00941058]
[1744289336081,9.3608,1591.0,1590.9,0.00941058]
[1744289336275,22.8289,1591.0,1590.9,5.8e-07]
[1744289336581,26.1658,1591.0,1590.9,5.8e-07]
[1744289337078,1.25819,1590.5,1590.4,8.7234]
[1744289337281,1.25835,1590.3,1590.2,0.10996607]
[1744289337475,4.46615,1590.3,1590.2,0.10996607]
[1744289337673,45.26615,1590.3,1590.2,0.10996607]
[1744289337875,50.26615,1590.3,1590.2,0.10996607]
[1744289338186,1.25898,1589.6,1589.4,1.25904]
[1744289338380,1.2589,1589.6,1589.5,8.4406]
[1744289338679,1.25909,1589.4,1589.2,9.5383]
[1744289338875,11.85682058,1589.7,1589.3,8.4406]
[1744289339076,3.2078,1589.4,1589.3,8.4406]
[1744289339273,3.2078,1589.4,1588.8,3.61393845]
[1744289339476,1.25903,1589.5,1589.3,1.25911]
[1744289339685,3.2078,1589.6,1589.4,8.4406]
[1744289339880,4.46671,1589.6,1589.4,1.25904]
[1744289340085,0.00941058,1589.7,1589.6,1.2589]
[1744289340880,0.00941058,1589.7,1589.6,6.2589]
[1744289341075,3.2078,1590.2,1590.1,1.25851]
[1744289341277,9.73962,1590.5,1590.3,1.25833]
[1744289341478,3.2078,1590.6,1590.5,1.25819]
[1744289341670,3.2078,1590.8,1590.7,1.25803]
[1744289341874,4.89008428,1591.1,1591.0,1.2578]
[1744289342280,45.69008428,1591.1,1591.0,1.2578]
[1744289342483,45.69008428,1591.1,1591.0,6.2578]
[1744289342782,45.69008428,1591.1,1591.0,10.3709]
[1744289342979,4.89008428,1591.1,1591.0,15.3709]
[1744289343179,4.89008428,1591.1,1591.0,10.3709]
[1744289343375,4.89008428,1591.1,1591.0,15.3709]
[1744289343574,7.19690815,1591.2,1591.1,1.25772]
[1744289343882,7.19690815,1591.2,1591.0,17.3209]
[1744289343883,1.25772,1591.1,1591.0,9.1131]
[1744289344278,10.40470815,1591.2,1591.0,14.1131]
[1744289344586,7.19690815,1591.2,1591.1,1.25772]
[1744289344974,7.19690815,1591.2,1591.1,6.25772]
[1744289345174,9.6931082,1591.4,1591.3,1.25756]
[1744289345579,8.76390713,1591.5,1591.4,1.25748]
[1744289345789,8.76390713,1591.5,1591.4,13.6371175]
[1744289345989,40.8,1591.7,1591.6,1.25732]
[1744289346581,0.00941058,1591.8,1591.7,1.25724]
[1744289346786,0.00941058,1591.8,1591.7,10.23054]
[1744289346988,0.00941058,1591.8,1591.7,15.23054]
[1744289347684,0.00941058,1591.8,1591.7,10.23054]
[1744289347876,3.2078,1592.2,1592.1,1.25693]
[1744289348186,3.2078,1592.2,1591.6,6.35098]
[1744289348384,3.2078,1592.2,1592.1,1.25693]
[1744289348787,44.0078,1592.2,1592.1,1.25693]
[1744289349384,0.00941058,1592.3,1592.2,1.25685]
[1744289349578,9.66358005,1592.4,1592.2,1.25685]
[1744289349579,9.66358005,1592.4,1592.3,1.25677]
[1744289349991,9.66358005,1592.4,1592.3,11.52886761]